bitfinex-derivatives/quotes_SOLF0:USTF0_20250113
["timestamp","ask_amount","ask_price","bid_price","bid_amount"]
[1736797605488,21.79941635,178.33,178.18,4.67974765]
[1736797605691,2.8067,178.25,178.19,2.8073]
[1736797605884,2.8067,178.25,178.18,4.67974765]
[1736797606190,2.8061,178.29,178.2,21.79941635]
[1736797606390,1.5543,178.35,178.2,21.79941635]
[1736797606891,1.5543,178.35,178.23,21.79941635]
[1736797607295,2.8056,178.31,178.26,2.8063]
[1736797607491,1.5543,178.35,178.24,6.22]
[1736797607993,2.8061,178.28,178.24,6.22]
[1736797608693,2.8059,178.29,178.24,9.0267]
[1736797609089,1.5543,178.35,178.24,6.22]
[1736797610092,2.8052,178.34,178.29,2.8058]
[1736797610297,28.01941635,178.39,178.24,6.22]
[1736797610587,1.6027,178.37,178.24,6.22]
[1736797610790,2.8057,178.31,178.26,2.8063]
[1736797611182,1.6027,178.37,178.24,6.22]
[1736797611491,21.79941635,178.36,178.24,6.22]
[1736797611691,1.6027,178.37,178.24,6.22]
[1736797612095,1.6027,178.37,178.26,21.79941635]
[1736797612588,21.79941635,178.42,178.29,21.79941635]
[1736797612796,26.69661635,178.45,178.29,21.79941635]
[1736797612991,0.96386915,178.44,178.31,2.8055]
[1736797613186,21.79941635,178.36,178.21,0.7875]
[1736797613387,21.79941635,178.36,178.21,22.58691635]
[1736797613591,2.8061,178.28,178.21,22.58691635]
[1736797613994,4.8972,178.35,178.21,22.58691635]
[1736797614294,21.79941635,178.33,178.18,26.479164]
[1736797614695,2.8067,178.25,178.2,2.8073]
[1736797615098,21.79941635,178.33,178.18,26.479164]
[1736797615998,4.8972,178.35,178.21,21.79941635]
[1736797616397,4.8972,178.35,178.18,26.479164]
[1736797617091,2.8066,178.25,178.18,26.479164]
[1736797617297,21.79941635,178.31,178.16,61.97107731]
[1736797617498,2.8065,178.26,178.21,2.8072]
[1736797618292,2.8064,178.27,178.22,2.8069]
[1736797618690,21.79941635,178.34,178.18,28.01941635]
[1736797618893,2.8061,178.28,178.21,21.79941635]
[1736797619194,21.79941635,178.34,178.21,21.79941635]
[1736797619587,2.8064,178.27,178.23,2.8068]
[1736797620194,21.79941635,178.34,178.21,21.79941635]
[1736797620393,21.79941635,178.31,178.16,61.97107731]
[1736797620789,2.8063,178.27,178.18,2.8076]
[1736797620989,21.79941635,178.28,178.15,96.24]
[1736797621190,1.6601,178.27,178.15,96.24]
[1736797621700,6.22,178.3,178.17,21.79941635]
[1736797621994,21.79941635,178.28,178.15,96.24]
[1736797622194,21.79941635,178.25,178.15,96.24]
[1736797622498,2.8078,178.18,178.15,96.24]
[1736797622699,3.3418,178.24,178.15,96.24]
[1736797623399,1.6601,178.29,178.17,21.79941635]
[1736797623597,3.293,178.31,178.2,21.79941635]
[1736797623894,25.09241635,178.31,178.17,22.58781635]
[1736797624095,2.8066,178.25,178.16,9.0279]
[1736797624299,21.79941635,178.25,178.11,21.79941635]
[1736797624500,21.79941635,178.22,178.08,22.58781635]
[1736797624699,3.3122,178.21,178.11,2.8086]
[1736797625397,3.3122,178.21,178.11,21.79941635]
[1736797625398,1.6312,178.21,178.11,21.79941635]
[1736797625601,1.6595,178.24,178.11,21.79941635]
[1736797627399,2.8073,178.21,178.13,2.8084]
[1736797627600,1.6595,178.24,178.13,2.8084]
[1736797627998,2.8078,178.18,178.13,2.8084]
[1736797628198,1.6595,178.24,178.14,2.8082]
[1736797628399,2.8073,178.21,178.11,21.79941635]
[1736797628601,2.8073,178.21,178.14,21.79941635]
[1736797628803,1.6595,178.24,178.14,21.79941635]
[1736797629099,181.91435722,178.35,178.2,21.79941635]
[1736797629405,1.5574,178.33,178.23,2.8068]
[1736797629605,2.8063,178.27,178.23,2.8068]
[1736797629801,1.5574,178.33,178.2,21.79941635]
[1736797630003,2.8056,178.31,178.26,2.8063]
[1736797630304,1.5574,178.33,178.26,2.8063]
[1736797630901,2.8056,178.31,178.27,2.8061]
[1736797631405,2.8067,178.24,178.2,2.8073]
[1736797631595,21.79941635,178.31,178.19,96.32]
[1736797632005,2.807,178.23,178.19,96.32]
[1736797632406,21.79941635,178.31,178.19,96.32]
[1736797632603,2.8071,178.22,178.19,96.32]
[1736797633401,2.807,178.23,178.19,96.32]
[1736797633697,21.79941635,178.28,178.19,96.32]
[1736797634003,21.79941635,178.28,178.13,28.03941635]
[1736797634204,21.79941635,178.28,178.16,2.8079]
[1736797634603,21.79941635,178.28,178.13,28.03941635]
[1736797634905,21.79941635,178.28,178.18,2.8076]
[1736797635306,2.807,178.22,178.18,2.8076]
[1736797635610,21.79941635,178.28,178.19,2.8074]
[1736797635906,21.79941635,178.31,178.16,21.79941635]
[1736797636103,1.5574,178.33,178.25,2.8064]
[1736797636402,2.8058,178.3,178.22,21.79941635]
[1736797636605,1.5574,178.33,178.22,21.79941635]
[1736797636804,2.8055,178.32,178.28,2.806]
[1736797637208,1.595,178.37,178.25,21.79941635]
[1736797637414,1.6164,178.41,178.28,21.79941635]
[1736797637706,1.6164,178.41,178.28,28.05941635]
[1736797638211,2.8046,178.38,178.31,2.8055]
[1736797638411,1.6164,178.41,178.28,28.05941635]
[1736797638802,1.5599,178.45,178.37,2.8045]
[1736797639007,21.79941635,178.46,178.31,21.79941635]
[1736797639402,2.804,178.41,178.31,21.79941635]
[1736797639706,21.79941635,178.46,178.31,21.79941635]
[1736797640008,2.8043,178.4,178.34,2.805]
[1736797640207,21.79941635,178.43,178.28,28.05941635]
[1736797640505,2.8047,178.37,178.28,28.05941635]
[1736797640710,21.79941635,178.43,178.28,28.05941635]
[1736797641217,21.79941635,178.43,178.31,2.8055]
[1736797641218,2.8044,178.39,178.31,2.8055]
[1736797641415,26.64621635,178.47,178.31,21.79941635]
[1736797641705,8.13193186,178.46,178.31,21.79941635]
[1736797641910,2.8047,178.37,178.31,21.79941635]
[1736797642810,2.8042,178.4,178.31,21.79941635]
[1736797643004,7.16804734,178.46,178.28,6.26]
[1736797643005,7.16804734,178.46,178.37,21.79941635]
[1736797643211,7.16804734,178.46,178.38,6.26]
[1736797643405,9.97134734,178.46,178.38,6.26]
[1736797643607,2.8033,178.46,178.38,6.26]
[1736797643811,2.8036,178.44,178.39,2.8043]
[1736797644008,21.79941635,178.5,178.38,6.26]
[1736797644208,21.79941635,178.47,178.34,21.79941635]
[1736797644606,0.96377547,178.46,178.36,2.8047]
[1736797644814,21.79941635,178.47,178.36,2.8047]
[1736797645113,1.6005,178.51,178.37,21.79941635]
[1736797645309,0.96359837,178.5,178.37,21.79941635]
[1736797645612,2.8033,178.46,178.4,2.804]
[1736797645817,1.6454,178.5,178.37,21.79941635]
[1736797646218,2.8034,178.46,178.4,2.8042]
[1736797646415,2.8034,178.46,178.37,21.79941635]
[1736797647118,1.6454,178.5,178.4,2.8041]
[1736797647119,2.8034,178.45,178.4,2.8041]
[1736797647317,1.6115,178.53,178.4,28.03941635]
[1736797647619,2.8022,178.53,178.48,2.8029]
[1736797647832,7.15787625,178.59,178.49,21.79941635]
[1736797648012,7.15787625,178.59,178.52,21.79941635]
[1736797648213,2.8015,178.58,178.54,2.802]
[1736797648616,1.6374,178.62,178.52,21.79941635]
[1736797648816,1.6374,178.62,178.5,7.0467]
[1736797648817,1.6374,178.62,178.53,2.8021]
[1736797649010,1.6374,178.62,178.5,7.0467]
[1736797649411,21.79941635,178.68,178.54,21.79941635]
[1736797649616,0.96270681,178.67,178.54,21.79941635]
[1736797649818,2.8009,178.62,178.56,2.8015]
[1736797650019,23.43681635,178.68,178.54,21.79941635]
[1736797650221,0.9626068,178.67,178.54,21.79941635]
[1736797650527,0.9626068,178.67,178.54,24.60121635]
[1736797650720,0.9626068,178.67,178.54,21.79941635]
[1736797650921,2.8017,178.57,178.5,7.0467]
[1736797651117,28.05941635,178.65,178.49,21.79941635]
[1736797651318,3.4024,178.64,178.49,21.79941635]
[1736797651921,3.4024,178.64,178.52,2.8022]
[1736797652323,3.4024,178.64,178.49,22.58451635]
[1736797652528,21.79941635,178.62,178.48,6.26]
[1736797653427,21.79941635,178.59,178.43,96.22]
[1736797653625,2.802,178.54,178.47,2.803]
[1736797653832,1.6837,178.58,178.46,21.79941635]
[1736797654132,4.4852,178.58,178.51,2.8023]
[1736797654325,1.6837,178.58,178.49,21.79941635]
[1736797654826,1.6837,178.58,178.49,2.8026]
[1736797655231,2.8021,178.54,178.48,2.8029]
[1736797655526,21.79941635,178.53,178.39,0.7851]
[1736797655725,25.17551635,178.53,178.38,21.79941635]
[1736797655926,25.17551635,178.53,178.4,2.8042]
[1736797656126,25.17551635,178.53,178.38,21.79941635]
[1736797656330,21.79941635,178.5,178.35,21.79941635]
[1736797656521,2.8043,178.4,178.35,2.8048]
[1736797657220,21.79941635,178.47,178.32,22.58451635]
[1736797657630,2.8039,178.42,178.37,2.8045]
[1736797657826,2.8039,178.42,178.32,22.58451635]
[1736797658027,1.724,178.49,178.35,21.79941635]
[1736797658332,1.724,178.49,178.38,21.79941635]
[1736797658530,1.724,178.49,178.39,6.3]
[1736797658731,4.5269,178.49,178.43,2.8036]
[1736797659133,1.724,178.49,178.43,2.8036]
[1736797660036,1.724,178.49,178.35,21.79941635]
[1736797660231,21.79941635,178.47,178.32,22.58451635]
[1736797660434,21.79941635,178.44,178.32,0.7851]
[1736797660630,2.8043,178.4,178.34,2.8051]
[1736797660829,1.6051,178.43,178.34,2.8051]
[1736797661030,2.8044,178.39,178.34,2.8051]
[1736797661729,2.8048,178.36,178.31,99.0056]
[1736797661935,21.79941635,178.41,178.31,96.2]
[1736797662135,1.6126,178.4,178.26,21.79941635]
[1736797662326,2.8052,178.34,178.28,2.806]
[1736797662525,1.6126,178.4,178.26,21.79941635]
[1736797663233,1.6126,178.4,178.29,21.79941635]
[1736797663433,1.6126,178.4,178.24,6.3]
[1736797663434,1.6126,178.4,178.31,35.32875828]
[1736797663634,4.4169,178.4,178.31,41.62875828]
[1736797663835,1.6126,178.4,178.31,41.62875828]
[1736797664033,1.6051,178.43,178.31,41.62875828]
[1736797664337,1.6051,178.43,178.34,35.32875828]
[1736797664531,1.5665,178.45,178.34,35.32875828]
[1736797665134,2.8042,178.41,178.35,2.8049]
[1736797665338,1.5665,178.45,178.34,35.32875828]
[1736797665539,1.6786,178.47,178.34,35.32875828]
[1736797665734,1.5818,178.48,178.37,35.32875828]
[1736797665933,1.5818,178.48,178.38,6.3]
[1736797666330,1.5818,178.48,178.41,2.804]
[1736797666735,2.8038,178.43,178.38,9.1045]
[1736797666938,1.5818,178.48,178.38,6.3]
[1736797667333,2.8034,178.45,178.38,6.3]
[1736797667638,1.5818,178.48,178.38,6.3]
[1736797669639,1.5818,178.48,178.41,2.8039]
[1736797669832,1.5818,178.48,178.38,6.3]
[1736797670931,2.8034,178.45,178.38,6.3]
[1736797671136,1.5818,178.48,178.38,6.3]
[1736797671642,1.5818,178.48,178.34,96.22]
[1736797671643,35.32875828,178.46,178.34,96.22]
[1736797672043,2.8043,178.4,178.35,2.8049]
[1736797672738,2.8037,178.43,178.38,2.8045]
[1736797672944,1.5818,178.48,178.37,35.32875828]
[1736797673735,1.5818,178.48,178.34,131.54875828]
[1736797674443,1.5818,178.48,178.34,96.22]
[1736797674642,35.32875828,178.46,178.34,96.22]
[1736797675337,2.8043,178.4,178.35,2.8049]
[1736797675744,35.32875828,178.46,178.34,96.22]
[1736797675944,2.8044,178.39,178.34,99.025]
[1736797676140,35.32875828,178.46,178.34,96.22]
[1736797676543,2.8047,178.37,178.34,96.22]
[1736797677044,35.32875828,178.43,178.34,96.22]
[1736797677244,35.32875828,178.43,178.34,99.0251]
[1736797677443,35.32875828,178.46,178.34,96.22]
[1736797677743,2.8037,178.43,178.39,2.8043]
[1736797678046,6.3,178.47,178.34,131.54875828]
[1736797678247,2.8037,178.44,178.37,2.8045]
[1736797678545,6.3,178.47,178.34,96.22]
[1736797678546,35.32875828,178.43,178.34,96.22]
[1736797678745,2.8048,178.37,178.34,96.22]
[1736797679047,1.6562,178.43,178.34,96.22]
[1736797679436,2.8041,178.41,178.36,2.8047]
[1736797679837,2.8041,178.41,178.37,2.8045]
[1736797680042,2.8041,178.41,178.34,96.22]
[1736797680245,2.8038,178.43,178.34,96.22]
[1736797680443,1.5818,178.48,178.34,131.54875828]
[1736797680643,1.5818,178.48,178.37,35.32875828]
[1736797680843,1.5818,178.48,178.38,6.3]
[1736797681146,1.6562,178.54,178.4,35.32875828]
[1736797681341,1.6562,178.54,178.41,0.7857]
[1736797681537,2.8027,178.5,178.45,2.8033]
[1736797682343,2.8023,178.52,178.47,2.803]
[1736797682549,1.6562,178.54,178.41,0.7857]
[1736797683047,2.8027,178.5,178.45,2.8033]
[1736797683245,1.6562,178.54,178.41,0.7857]
[1736797683550,35.32875828,178.59,178.46,35.32875828]
[1736797683846,4.8917,178.61,178.47,6.3]
[1736797684050,35.32875828,178.65,178.47,41.62875828]
[1736797684245,3.2144,178.65,178.52,35.32875828]
[1736797684549,190.62719714,178.71,178.55,35.32875828]
[1736797684747,2.8001,178.66,178.6,2.801]
[1736797684948,2.8001,178.66,178.58,35.32875828]
[1736797685249,2.8001,178.66,178.6,2.801]
[1736797685453,2.8001,178.66,178.57,21.67585784]
[1736797685748,2.8003,178.65,178.6,2.801]
[1736797685947,2.8003,178.65,178.57,21.67585784]
[1736797686450,2.8001,178.67,178.57,24.47725784]
[1736797686649,21.67585784,178.7,178.57,24.47725784]
[1736797686650,21.67585784,178.7,178.57,21.67585784]
[1736797687450,21.67585784,178.7,178.59,2.8012]
[1736797687949,3.2263,178.71,178.57,21.67585784]
[1736797688142,3.2263,178.71,178.6,21.67585784]
[1736797689047,2.7998,178.68,178.63,2.8006]
[1736797689250,21.67585784,178.76,178.63,6.28]
[1736797689453,2.58984249,178.75,178.63,6.28]
[1736797689657,2.8,178.67,178.63,6.28]
[1736797690152,1.6276,178.75,178.64,2.8003]
[1736797690352,0.96224305,178.74,178.63,27.95585784]
[1736797690550,1.6276,178.75,178.63,27.95585784]
[1736797690749,2.7993,178.72,178.66,2.8]
[1736797691355,1.6276,178.75,178.63,6.28]
[1736797691754,21.67585784,178.73,178.63,6.28]
[1736797692456,2.8003,178.65,178.63,6.28]
[1736797692655,21.67585784,178.73,178.63,6.28]
[1736797693155,2.7995,178.7,178.63,6.28]
[1736797693350,21.67585784,178.73,178.57,21.67585784]
[1736797693557,21.67585784,178.7,178.58,6.28]
[1736797693758,1.6276,178.75,178.61,21.67585784]
[1736797694154,1.6276,178.75,178.65,2.8002]
[1736797694455,1.6276,178.75,178.61,21.67585784]
[1736797694651,1.6276,178.75,178.64,2.8003]
[1736797694956,2.7994,178.71,178.61,21.67585784]
[1736797695455,2.7994,178.71,178.65,2.8001]
[1736797695855,1.6276,178.75,178.66,2.8001]
[1736797696156,1.6276,178.75,178.65,6.28]
[1736797697157,21.67585784,178.73,178.61,6.28]
[1736797697359,21.67585784,178.73,178.58,27.95585784]
[1736797697658,2.8003,178.65,178.59,2.801]
[1736797697854,21.67585784,178.73,178.59,2.801]
[1736797698156,21.67585784,178.7,178.58,6.28]
[1736797698354,1.575,178.69,178.58,6.28]
[1736797698857,2.8004,178.65,178.58,6.28]
[1736797699059,1.575,178.69,178.58,6.28]
[1736797699257,2.8004,178.64,178.59,2.8012]
[1736797699660,1.7214,178.68,178.58,6.28]
[1736797699956,1.7214,178.68,178.52,21.67585784]
[1736797700162,21.67585784,178.67,178.53,6.28]
[1736797700462,2.8009,178.61,178.56,2.8015]
[1736797700955,1.67,178.66,178.52,21.67585784]
[1736797701161,1.67,178.66,178.53,6.28]
[1736797702166,1.67,178.66,178.57,2.8015]
[1736797702358,1.67,178.66,178.53,6.28]
[1736797702864,2.801,178.61,178.56,2.8015]
[1736797703063,1.67,178.66,178.56,2.8015]
[1736797703259,2.8013,178.59,178.54,9.0618]
[1736797703466,21.67585784,178.64,178.54,6.26]
[1736797703665,21.67585784,178.64,178.5,96.22]
[1736797703859,2.8019,178.55,178.5,99.0225]
[1736797704054,2.8019,178.55,178.5,96.22]
[1736797704261,2.8021,178.54,178.5,99.0226]
[1736797704663,21.67585784,178.64,178.5,96.22]
[1736797704863,2.8013,178.59,178.54,2.802]
[1736797705059,21.67585784,178.64,178.54,2.802]
[1736797705468,2.8011,178.6,178.55,2.8018]
[1736797705663,2.8011,178.6,178.52,21.67585784]
[1736797706063,2.8013,178.59,178.52,21.67585784]
[1736797706266,21.67585784,178.64,178.5,102.48]
[1736797706462,2.8017,178.56,178.52,2.8023]
[1736797706766,2.8017,178.56,178.5,102.48]
[1736797707266,2.8019,178.55,178.5,102.48]
[1736797707469,21.67585784,178.64,178.5,102.48]
[1736797708067,2.802,178.54,178.5,105.2825]
[1736797708468,21.67585784,178.61,178.5,96.22]
[1736797708670,2.8024,178.52,178.5,96.22]
[1736797710472,1.7094,178.59,178.5,96.22]
[1736797710668,2.8025,178.51,178.5,96.22]
[1736797711273,1.7094,178.59,178.5,96.22]
[1736797712978,2.8016,178.57,178.5,96.22]
[1736797713182,1.7094,178.59,178.5,96.22]
[1736797713879,2.8019,178.55,178.5,99.0225]
[1736797714373,1.7094,178.59,178.5,96.22]
[1736797714571,160.89783886,178.69,178.52,21.67585784]
[1736797714771,24.99105784,178.68,178.55,21.67585784]
[1736797714976,24.99105784,178.68,178.52,27.91585784]
[1736797715176,24.99105784,178.68,178.55,2.8018]
[1736797716585,21.67585784,178.65,178.52,6.24]
[1736797716782,22.63851874,178.65,178.5,96.22]
[1736797717085,2.802,178.55,178.5,96.22]
[1736797717488,2.8011,178.6,178.54,2.8018]
[1736797717688,6.24,178.64,178.54,2.8018]
[1736797718488,21.67585784,178.65,178.5,96.22]
[1736797719386,21.67585784,178.65,178.52,2.8023]
[1736797719583,2.8016,178.57,178.52,2.8023]
[1736797719979,2.8016,178.57,178.53,2.8021]
[1736797720588,2.8019,178.55,178.51,2.8024]
[1736797720790,21.67585784,178.62,178.5,96.22]
[1736797721088,2.8019,178.55,178.51,2.8024]
[1736797721785,21.67585784,178.65,178.5,96.22]
[1736797721985,6.24,178.67,178.52,21.67585784]
[1736797722484,0.96264255,178.65,178.52,21.67585784]
[1736797722690,22.63850039,178.65,178.52,21.67585784]
[1736797722891,2.8013,178.59,178.54,2.8019]
[1736797723591,2.8014,178.58,178.54,2.8019]
[1736797725288,2.8015,178.57,178.54,2.8019]
[1736797725490,21.67585784,178.62,178.51,2.8024]
[1736797726692,0.96283884,178.61,178.51,2.8024]
[1736797726891,7.2705,178.66,178.38,212.67585784]
[1736797726892,21.67585784,178.59,178.43,21.67585784]
[1736797727092,21.67585784,178.59,178.44,6.26]
[1736797727288,3.2747,178.58,178.44,6.26]
[1736797727497,2.8024,178.52,178.48,2.8029]
[1736797727686,3.2747,178.58,178.44,6.26]
[1736797728290,2.8026,178.51,178.44,6.26]
[1736797728496,3.2747,178.58,178.44,6.26]
[1736797728998,1.7157,178.6,178.49,21.67585784]
[1736797729199,156.90843886,178.64,178.52,21.67585784]
[1736797729494,159.70893886,178.64,178.59,2.8011]
[1736797729695,155.29843886,178.64,178.58,21.67585784]
[1736797729989,155.29843886,178.64,178.58,27.93585784]
[1736797730192,155.29843886,178.64,178.61,2.8008]
[1736797730391,2.8003,178.65,178.61,2.8008]
[1736797731700,2.8001,178.67,178.62,2.8006]
[1736797731995,3.3841,178.7,178.61,21.67585784]
[1736797732292,2.7998,178.68,178.64,2.8003]
[1736797732498,1.6984,178.73,178.64,2.8003]
[1736797732698,0.962284,178.72,178.64,2.8003]
[1736797732899,2.7998,178.69,178.64,2.8003]
[1736797733295,1.6984,178.73,178.61,21.67585784]
[1736797733501,2.8001,178.66,178.61,21.67585784]
[1736797733701,1.6984,178.73,178.58,27.93585784]
[1736797734001,0.96232056,178.72,178.6,2.801]
[1736797734401,2.8002,178.66,178.6,2.801]
[1736797734604,21.67585784,178.71,178.58,27.93585784]
[1736797734895,0.96233453,178.7,178.58,27.93585784]
[1736797735096,0.96237702,178.69,178.55,27.89585784]
[1736797735296,0.96237702,178.68,178.57,2.8015]
[1736797735498,2.8011,178.6,178.55,27.89585784]
[1736797735699,2.8011,178.6,178.53,96.14]
[1736797735700,21.67585784,178.68,178.53,96.14]
[1736797735999,2.8013,178.59,178.54,2.802]
[1736797736902,3.3514,178.64,178.49,21.67585784]
[1736797736903,21.67585784,178.62,178.49,21.67585784]
[1736797737094,21.67585784,178.59,178.45,6.24]
[1736797737298,21.67585784,178.56,178.44,0.7775]
[1736797737499,21.67585784,178.56,178.43,21.67585784]
[1736797737702,27.91585784,178.56,178.4,117.79585784]
[1736797737904,21.67585784,178.53,178.4,117.79585784]
[1736797738106,1.6968,178.52,178.4,117.79585784]
[1736797738605,21.67585784,178.5,178.4,96.12]
[1736797738907,21.67585784,178.5,178.34,27.91585784]
[1736797739403,2.8039,178.43,178.34,27.91585784]
[1736797740003,21.67585784,178.5,178.34,27.91585784]
[1736797740499,21.67585784,178.5,178.38,2.8045]
[1736797740712,2.8041,178.41,178.34,21.67585784]
[1736797741202,2.8034,178.45,178.34,21.67585784]
[1736797741397,3.2247,178.51,178.4,21.67585784]
[1736797741794,1.6968,178.52,178.43,21.67585784]
[1736797742000,176.9742967,178.56,178.43,21.67585784]
[1736797742001,155.29843886,178.56,178.43,21.67585784]
[1736797742201,1.6686,178.56,178.43,21.67585784]
[1736797742500,1.6686,178.56,178.46,21.67585784]
[1736797743102,1.6686,178.56,178.49,2.8028]
[1736797743504,1.6686,178.56,178.46,27.93585784]
[1736797743706,2.802,178.54,178.47,2.803]
[1736797743911,2.802,178.54,178.46,27.93585784]
[1736797744408,2.8026,178.5,178.46,21.67585784]
[1736797744605,1.6686,178.56,178.43,27.91585784]
[1736797744804,23.34445784,178.56,178.4,21.67585784]
[1736797745004,21.67585784,178.5,178.37,21.67585784]
[1736797745203,21.67585784,178.47,178.33,8.2481924]
[1736797745411,1.6565,178.46,178.33,8.2481924]
[1736797745712,2.8045,178.38,178.33,7.4706924]
[1736797746008,21.67585784,178.44,178.31,21.67585784]
[1736797746309,21.67585784,178.44,178.29,102.4]
[1736797746510,21.67585784,178.41,178.29,102.4]
[1736797746711,2.8046,178.38,178.29,105.2058]
[1736797747007,21.67585784,178.41,178.29,98.9458]
[1736797747208,21.67585784,178.41,178.29,96.14]
[1736797747402,35.34438639,178.42,178.3,2.8057]
[1736797747602,35.34438639,178.42,178.29,96.14]
[1736797748304,35.34438639,178.39,178.29,96.14]
[1736797748503,35.34438639,178.39,178.2,35.34438639]
[1736797748702,35.34438639,178.36,178.21,6.26]
[1736797748912,1.7032,178.35,178.21,6.26]
[1736797750006,1.7131,178.38,178.27,35.34438639]
[1736797750912,1.7131,178.38,178.24,35.34438639]
[1736797751104,1.7131,178.38,178.27,35.34438639]
[1736797751314,6.24,178.44,178.3,35.34438639]
[1736797752108,35.34438639,178.42,178.28,6.26]
[1736797753604,2.805,178.35,178.29,2.8059]
[1736797754212,35.34438639,178.42,178.28,9.066]
[1736797754403,0.96392775,178.41,178.28,6.26]
[1736797754608,35.34438639,178.39,178.28,6.26]
[1736797755113,2.8054,178.33,178.28,9.0661]
[1736797756105,35.34438639,178.39,178.24,35.34438639]
[1736797756308,35.34438639,178.36,178.23,6.24]
[1736797756605,1.6845,178.35,178.23,6.24]
[1736797756808,1.6845,178.35,178.2,35.34438639]
[1736797757108,1.5606,178.34,178.2,35.34438639]
[1736797757613,35.34438639,178.33,178.18,96.2]
[1736797757813,35.34438639,178.3,178.15,61.18463753]
[1736797758013,35.34438639,178.27,178.12,7.0201]
[1736797758513,7.8212,178.29,178.14,35.34438639]
[1736797758709,7.8212,178.29,178.17,35.34438639]
[1736797759111,6.24,178.29,178.22,2.807]
[1736797759316,6.24,178.29,178.17,35.34438639]
[1736797759509,6.24,178.29,178.17,41.58438639]
[1736797759717,6.24,178.29,178.17,35.34438639]
[1736797760118,2.8067,178.24,178.17,35.34438639]
[1736797760314,1.5812,178.32,178.2,35.34438639]
[1736797761313,1.5606,178.34,178.2,35.34438639]
[1736797762516,35.34438639,178.33,178.17,41.58438639]
[1736797763613,2.8065,178.26,178.21,2.8071]
[1736797763810,35.34438639,178.33,178.17,41.58438639]
[1736797764419,35.34438639,178.33,178.2,2.8072]
[1736797764615,35.34438639,178.27,178.14,6.24]
[1736797764820,2.8074,178.2,178.16,2.8079]
[1736797765115,2.8074,178.2,178.12,0.7801]
[1736797765320,2.8069,178.23,178.17,2.8077]
[1736797765521,1.6627,178.26,178.14,35.34438639]
[1736797766221,1.5721,178.25,178.12,7.0201]
[1736797766521,2.8075,178.19,178.15,2.808]
[1736797766821,36.99918639,178.24,178.11,35.34438639]
[1736797767022,2.8074,178.2,178.16,2.8079]
[1736797767216,1.6548,178.24,178.11,35.34438639]
[1736797767522,2.8073,178.21,178.17,2.8077]
[1736797768417,2.8074,178.2,178.17,2.8077]
[1736797768616,1.6548,178.24,178.18,2.8075]
[1736797768811,1.6268,178.29,178.14,35.34438639]
[1736797769014,2.8069,178.23,178.14,35.34438639]
[1736797769419,2.8072,178.22,178.15,21.77765105]
[1736797770015,3.1989,178.29,178.15,21.77765105]
[1736797770624,2.8072,178.21,178.18,2.8076]
[1736797770923,3.1989,178.29,178.18,2.8076]
[1736797771727,2.8071,178.22,178.18,2.8076]
[1736797772020,3.1989,178.29,178.2,2.8072]
[1736797772218,2.8069,178.23,178.2,2.8072]
[1736797773923,2.8071,178.22,178.15,21.77765105]
[1736797774125,3.1989,178.29,178.14,6.26]
[1736797774722,2.8073,178.21,178.17,2.8077]
[1736797775719,3.1989,178.29,178.13,0.7821]
[1736797775925,21.77765105,178.27,178.12,28.03765105]
[1736797776127,21.77765105,178.24,178.12,6.26]
[1736797776324,21.77765105,178.24,178.15,2.8081]
[1736797776325,2.8078,178.18,178.15,2.8081]
[1736797776625,24.97655105,178.29,178.15,21.77765105]
[1736797776826,2.8066,178.25,178.21,2.8071]
[1736797777025,3.1989,178.29,178.18,21.77765105]
[1736797777324,2.8067,178.25,178.21,2.8071]
[1736797777524,3.1989,178.29,178.21,2.8071]
[1736797777822,2.8066,178.25,178.15,22.56055105]
[1736797778021,1.6782,178.28,178.15,22.56055105]
[1736797778422,1.6782,178.28,178.15,21.77765105]
[1736797778624,21.77765105,178.26,178.14,6.26]